lending/lending_fUSD_20250224
["ID","MTS","AMOUNT","RATE_DAILY","PERIOD"]
[354339370,1740433837735,-151.0,0.0002073,2]
[354339371,1740433837750,-151.0,0.0002073,2]
[354339372,1740433837764,-151.0,0.0002073,2]
[354339373,1740433837783,-151.0,0.0002073,2]
[354339374,1740433837797,-151.0,0.0002073,2]
[354339375,1740433837812,-180.499503,0.0002073,2]
[354339377,1740433837825,-180.499503,0.0002073,2]
[354339378,1740433837840,-151.0,0.0002073,2]
[354339379,1740433837855,-285.32154,0.0002073,2]
[354339380,1740433837869,-151.0,0.0002073,2]
[354339381,1740433837885,-285.32154,0.0002073,2]
[354339382,1740433837898,-151.0,0.0002073,2]
[354339383,1740433837913,-376.103308,0.0002073,2]
[354339384,1740433837927,-376.103308,0.0002073,2]
[354339385,1740433837941,-151.0,0.0002073,2]
[354339386,1740433837956,-200.0,0.00020744,2]
[354339387,1740433837970,-14943.67461781,0.00020764,2]
[354339388,1740433839473,-8956.32538219,0.00020764,2]
[354339389,1740433839482,-151.0,0.00020764,2]
[354339390,1740433839491,-151.688301,0.00020764,2]
[354339391,1740433839500,-151.481262,0.00020764,2]
[354339392,1740433839511,-151.0,0.00020764,2]
[354339393,1740433839521,-151.0,0.00020764,2]
[354339394,1740433839530,-151.0,0.00020764,2]
[354339395,1740433839539,-302.668272,0.00020764,2]
[354339396,1740433839549,-302.668272,0.00020764,2]
[354339397,1740433839558,-3131.757085,0.00020764,2]
[354339398,1740433839568,-3131.757085,0.00020764,2]
[354339399,1740433839577,-151.0,0.00020764,2]
[354339400,1740433839586,-151.0,0.00020764,2]
[354339401,1740433839595,-151.0,0.00020764,2]
[354339402,1740433839604,-151.0,0.00020764,2]
[354339403,1740433839613,-151.0,0.00020764,2]
[354339404,1740433839622,-151.0,0.00020764,2]
[354339405,1740433839631,-151.0,0.00020764,2]
[354339406,1740433839640,-1792.0,0.0002078,2]
[354339407,1740433839649,-181.12,0.0002081,2]
[354339408,1740433839658,-262.83,0.0002086,2]
[354339409,1740433839667,-300.0,0.00020927,2]
[354339410,1740433839679,-508.64,0.00020953,2]
[354339411,1740433839688,-550.0,0.00021,2]
[354339412,1740433839697,-262.83,0.00021009,2]
[354339413,1740433839706,-262.83,0.00021158,2]
[354339414,1740433839716,-150.0,0.00021226,2]
[354339415,1740433839725,-262.83,0.00021308,2]
[354339416,1740433839734,-151.0,0.000214,2]
[354339417,1740433839743,-262.83,0.00021457,2]
[354339418,1740433839751,-1000.0,0.00021565,2]
[354339419,1740433839760,-151.0,0.000216,2]
[354339420,1740433839771,-152.740419,0.000216,2]
[354339421,1740433839779,-262.83,0.00021606,2]
[354339422,1740433839788,-180.499503,0.00021611,2]
[354339423,1740433839797,-180.499503,0.00021611,2]
[354339424,1740433839806,-151.0,0.00021611,2]
[354339425,1740433839815,-285.32154,0.00021611,2]
[354339426,1740433839824,-151.0,0.00021611,2]
[354339427,1740433839834,-285.32154,0.00021611,2]
[354339428,1740433839843,-151.530562,0.00021611,2]
[354339429,1740433839852,-376.103308,0.00021611,2]
[354339430,1740433839860,-376.103308,0.00021611,2]
[354339431,1740433839869,-151.0,0.00021611,2]
[354339432,1740433839878,-151.534147,0.00021611,2]
[354339433,1740433839887,-151.0,0.00021611,2]
[354339434,1740433839896,-262.83,0.00021756,2]
[354339435,1740433839905,-150.0,0.00021898,2]
[354339436,1740433839914,-262.83,0.00021905,2]
[354339437,1740433839923,-276.33,0.00021981,30]
[354339438,1740433839932,-218.48,0.00022,2]
[354339439,1740433839941,-262.83,0.00022054,2]
[354339440,1740433839950,-151.0,0.000221,7]
[354339441,1740433839959,-262.83,0.00022204,2]
[354339442,1740433839968,-151.0,0.000223,7]
[354339443,1740433839977,-209.305643,0.000223,7]
[354339444,1740433839986,-209.305643,0.000223,7]
[354339445,1740433839995,-228.438234,0.000223,7]
[354339446,1740433840004,-228.438234,0.000223,7]
[354339447,1740433840013,-151.0,0.000223,7]
[354339448,1740433840024,-151.0,0.000223,7]
[354339449,1740433840032,-151.0,0.000223,7]
[354339450,1740433840041,-151.0,0.000223,7]
[354339451,1740433840050,-151.0,0.000223,7]
[354339452,1740433840059,-151.0,0.000223,7]
[354339453,1740433840068,-151.0,0.000223,7]
[354339454,1740433840076,-151.0,0.000223,7]
[354339455,1740433840085,-151.0,0.000223,7]
[354339456,1740433840094,-151.0,0.000223,7]
[354339457,1740433840103,-198.568777,0.000223,7]
[354339458,1740433840112,-198.568777,0.000223,7]
[354339459,1740433840121,-151.0,0.000223,7]
[354339460,1740433840130,-162.547855,0.000223,7]
[354339461,1740433840139,-3131.757085,0.000223,7]
[354339462,1740433840147,-162.547855,0.000223,7]
[354339463,1740433840156,-3131.757085,0.000223,7]
[354339464,1740433840165,-151.0,0.000223,7]
[354339465,1740433840174,-166.310768,0.000223,7]
[354339466,1740433840182,-151.0,0.000223,7]
[354339467,1740433840192,-151.0,0.000223,7]
[354339468,1740433840201,-151.0,0.000223,7]
[354339469,1740433840211,-151.0,0.000223,7]
[354339470,1740433840219,-153.081895,0.000223,7]
[354339471,1740433840228,-262.83,0.00022353,2]
[354339472,1740433840237,-2047.35765,0.000224,2]
[354339473,1740433840246,-6580.85788262,0.00022438,2]
[354339474,1740433840255,-262.83,0.00022502,2]
[354339475,1740433840264,-150.0,0.0002257,2]
[354339476,1740433840275,-262.83,0.00022652,2]
[354339477,1740433840283,-151.0,0.00022791,7]
[354339478,1740433840292,-302.668272,0.00022791,7]
[354339479,1740433840301,-302.668272,0.00022791,7]
[354339480,1740433840310,-262.83,0.00022801,2]
[354339481,1740433840319,-262.83,0.0002295,2]
[354339482,1740433840328,-600.0,0.00023,2]
[354339483,1740433840336,-262.83,0.00023099,2]
[354339484,1740433840346,-508.64,0.00023217,2]
[354339485,1740433840355,-150.0,0.00023242,2]
[354339486,1740433840364,-151.0,0.000233,7]
[354339487,1740433840374,-173.912584,0.000233,7]
[354339488,1740433840383,-180.499503,0.00023322,7]
[354339489,1740433840391,-180.499503,0.00023322,7]
[354339490,1740433840402,-151.0,0.00023322,7]
[354339491,1740433840413,-285.32154,0.00023322,7]
[354339492,1740433840422,-151.0,0.00023322,7]
[354339493,1740433840431,-285.32154,0.00023322,7]
[354339494,1740433840440,-376.103308,0.00023322,7]
[354339495,1740433840451,-376.103308,0.00023322,7]
[354339496,1740433840460,-166.606111,0.00023322,7]
[354339497,1740433840468,-151.0,0.00023322,7]
[354339498,1740433840478,-151.0,0.00023721,7]
[354339499,1740433840488,-151.0,0.00023721,7]
[354339500,1740433840497,-51.20864619,0.00023721,2]
[354339501,1740433840509,-388.86363569,0.00023721,2]
[354339502,1740433840524,-472.335,0.00023721,2]
[354339503,1740433840535,-87.59271812,0.00023721,2]
[354339504,1740433840545,-157.25,0.00023836,2]
[354339505,1740433840554,-534.2065063,0.000239,2]
[354339506,1740433840586,-465.7934937,0.000239,2]
[354339507,1740433840595,-1000.0,0.000239,2]
[354339508,1740433840604,-788.2365223,0.000239,2]
[354339509,1740433840615,-647.6518777,0.000239,2]
[354339510,1740433840624,-150.0,0.00023914,2]
[354339511,1740433840633,-775.5981233,0.00024,30]
[354339512,1740433840643,-316.89644074,0.00024,30]
[354339519,1740433843534,-151.0,0.0002,2]
[354339520,1740433843544,-151.0,0.000204,2]
[354339521,1740433843554,-151.0,0.00020764,2]
[354339522,1740433843563,-151.0,0.000223,7]
[354339523,1740433843573,-600.0,0.00022888,2]
[354339524,1740433843582,-4286.29494872,0.00024,30]
[354339525,1740433843594,-1936.1352,0.00024,30]
[354339526,1740433843617,-1254.32754042,0.00024,30]
[354339527,1740433843664,-5657.83784013,0.00024,30]
[354339528,1740433843674,-151.0,0.00024,7]
[354339529,1740433843683,-244.0,0.00024,7]
[354339530,1740433843692,-209.305643,0.00024,7]
[354339531,1740433843702,-209.305643,0.00024,7]
[354339532,1740433843711,-151.436567,0.00024,7]
[354339533,1740433843721,-228.438234,0.00024,7]
[354339534,1740433843730,-228.438234,0.00024,7]
[354339535,1740433843739,-151.0,0.00024,7]
[354339536,1740433843748,-151.0,0.00024,7]
[354339537,1740433843758,-151.0,0.00024,7]
[354339538,1740433843767,-151.370162,0.00024,7]
[354339539,1740433843777,-151.0,0.00024,7]
[354339540,1740433843786,-151.0,0.00024,7]
[354339541,1740433843795,-151.83784,0.00024,7]
[354339542,1740433843803,-151.0,0.00024,7]
[354339543,1740433843812,-151.642632,0.00024,7]
[354339544,1740433843822,-198.568777,0.00024,7]
[354339545,1740433843832,-198.568777,0.00024,7]
[354339546,1740433843841,-152.374458,0.00024,7]
[354339547,1740433843850,-162.547855,0.00024,7]
[354339548,1740433843859,-302.668272,0.00024,7]
[354339549,1740433843868,-302.668272,0.00024,7]
[354339550,1740433843878,-3131.757085,0.00024,7]
[354339551,1740433843887,-162.547855,0.00024,7]
[354339552,1740433843896,-3131.757085,0.00024,7]
[354339553,1740433843905,-151.0,0.00024,7]
[354339554,1740433843915,-151.0,0.00024,7]
[354339555,1740433843924,-151.0,0.00024,7]
[354339556,1740433843933,-151.0,0.00024,7]
[354339557,1740433843942,-6580.85788262,0.00024246,2]
[354339558,1740433843951,-276.33,0.00024565,30]
[354339559,1740433843961,-150.0,0.00024586,2]
[354339560,1740433843970,-1000.0,0.00024658,2]
[354339561,1740433843979,-216.762808,0.00024658,7]
[354339563,1740433843988,-151.0,0.00024658,7]
[354339565,1740433843997,-156.526457,0.00024761,7]
[354339566,1740433844006,-156.526457,0.00024761,7]
[354339567,1740433844015,-285.32154,0.00024761,7]
[354339568,1740433844025,-151.0,0.00024761,7]
[354339569,1740433844034,-285.32154,0.00024761,7]
[354339570,1740433844043,-152.964164,0.00024761,7]
[354339571,1740433844052,-180.499503,0.00024842,7]
[354339572,1740433844061,-180.499503,0.00024842,7]
[354339573,1740433844070,-151.0,0.00024842,7]
[354339574,1740433844081,-376.103308,0.00024842,7]
[354339575,1740433844251,-376.103308,0.00024842,7]
[354339576,1740433844268,-567.73,0.00024842,2]
[354339577,1740433844278,-151.0,0.00025,7]
[354339578,1740433844287,-151.0,0.00025,7]
[354339579,1740433844297,-151.0,0.00025,7]
[354339580,1740433844305,-151.000001,0.00025,7]
[354339581,1740433844314,-151.0,0.00025,7]
[354339582,1740433844323,-180.05816,0.00025,7]
[354339583,1740433844332,-650.0,0.00025,2]
[354339584,1740433844340,-1418.12,0.00025021,2]
[354339585,1740433844349,-151.0,0.00025021,7]
[354339586,1740433844358,-151.0,0.00025021,7]
[354339587,1740433844367,-567.73,0.00025025,2]
[354339588,1740433844377,-151.0,0.00025033,7]
[354339589,1740433844386,-180.499503,0.00025033,7]
[354339590,1740433844395,-180.499503,0.00025033,7]
[354339591,1740433844404,-151.0,0.00025033,7]
[354339592,1740433844415,-285.32154,0.00025033,7]
[354339593,1740433844424,-285.32154,0.00025033,7]
[354339594,1740433844433,-209.305643,0.00025033,7]
[354339595,1740433844442,-209.305643,0.00025033,7]
[354339596,1740433844451,-376.103308,0.00025033,7]
[354339597,1740433844461,-376.103308,0.00025033,7]
[354339598,1740433844469,-228.438234,0.00025033,7]
[354339599,1740433844478,-228.438234,0.00025033,7]
[354339600,1740433844487,-151.0,0.00025033,7]
[354339601,1740433844496,-151.0,0.00025033,7]
[354339602,1740433844505,-151.0,0.00025033,7]
[354339603,1740433844514,-151.0,0.00025033,7]
[354339604,1740433844523,-151.0,0.00025033,7]
[354339605,1740433844532,-198.568777,0.00025033,7]
[354339606,1740433844541,-198.568777,0.00025033,7]
[354339607,1740433844550,-162.547855,0.00025033,7]
[354339608,1740433844559,-302.668272,0.00025033,7]
[354339609,1740433844568,-302.668272,0.00025033,7]
[354339610,1740433844577,-3131.757085,0.00025033,7]
[354339611,1740433844586,-162.547855,0.00025033,7]
[354339612,1740433844594,-3131.757085,0.00025033,7]
[354339613,1740433844603,-151.0,0.00025033,7]
[354339614,1740433844613,-151.0,0.00025033,7]
[354339615,1740433844623,-150.0,0.00025085,2]
[354339616,1740433844631,-200.0,0.0002516,2]
[354339617,1740433844640,-567.73,0.00025208,2]
[354339618,1740433844649,-150.0,0.00025258,2]
[354339619,1740433844658,-231.561099,0.00025348,7]
[354339620,1740433844667,-567.73,0.00025391,2]
[354339621,1740433844675,-508.64,0.00025481,2]
[354339622,1740433844684,-567.73,0.00025574,2]
[354339623,1740433844693,-2338.0,0.00025757,2]
[354339624,1740433844702,-567.73,0.00025757,2]
[354339625,1740433844711,-1000.0,0.00025878,2]
[354339626,1740433844719,-150.0,0.00025931,2]
[354339627,1740433844728,-567.73,0.0002594,2]
[354339628,1740433844737,-321.409,0.0002597,2]
[354339629,1740433844746,-1789.0,0.0002597,2]
[354339630,1740433844754,-150.0,0.0002597,2]
[354339631,1740433844763,-150.0,0.0002597,2]
[354339632,1740433844773,-1110.0,0.0002597,2]
[354339633,1740433844782,-151.0,0.00026053,7]
[354339634,1740433844790,-167.012525,0.00026053,7]
[354339635,1740433844799,-6580.85788262,0.00026053,2]
[354339636,1740433844808,-567.73,0.00026123,2]
[354339637,1740433844817,-567.73,0.00026306,2]
[354339638,1740433844826,-567.73,0.00026489,2]
[354339639,1740433844835,-150.0,0.00026603,2]
[354339640,1740433844843,-567.73,0.00026673,2]
[354339641,1740433844852,-151.0,0.00026744,7]
[354339642,1740433844861,-180.499503,0.00026744,7]
[354339643,1740433844870,-180.499503,0.00026744,7]
[354339644,1740433844878,-151.0,0.00026744,7]
[354339645,1740433844887,-285.32154,0.00026744,7]
[354339646,1740433844896,-285.32154,0.00026744,7]
[354339647,1740433844904,-209.305643,0.00026744,7]
[354339648,1740433844913,-209.305643,0.00026744,7]
[354339649,1740433844922,-376.103308,0.00026744,7]
[354339650,1740433844931,-376.103308,0.00026744,7]
[354339651,1740433844939,-228.438234,0.00026744,7]
[354339652,1740433844948,-228.438234,0.00026744,7]
[354339653,1740433844957,-152.899572,0.00026744,7]
[354339654,1740433844966,-151.0,0.00026744,7]
[354339655,1740433844975,-151.0,0.00026744,7]
[354339656,1740433844983,-151.0,0.00026744,7]
[354339657,1740433844992,-151.0,0.00026744,7]
[354339658,1740433845001,-198.568777,0.00026744,7]
[354339659,1740433845011,-198.568777,0.00026744,7]
[354339660,1740433845020,-162.547855,0.00026744,7]
[354339661,1740433845030,-302.668272,0.00026744,7]
[354339662,1740433845039,-302.668272,0.00026744,7]
[354339663,1740433845049,-3131.757085,0.00026744,7]
[354339664,1740433845058,-162.547855,0.00026744,7]
[354339665,1740433845067,-3131.757085,0.00026744,7]
[354339666,1740433845076,-151.0,0.00026744,7]
[354339667,1740433845086,-152.808457,0.00026744,7]
[354339668,1740433845096,-567.73,0.00026856,2]
[354339669,1740433845105,-100000.0,0.00027,14]
[354339670,1740433845115,-151.458037,0.00027,7]
[354339671,1740433845124,-500.0,0.00027038,2]
[354339672,1740433845133,-567.73,0.00027039,2]
[354339673,1740433845143,-152.19,0.00027084,2]
[354339674,1740433845152,-276.33,0.00027149,30]
[354339675,1740433845161,-567.73,0.00027222,2]
[354339677,1740433845172,-150.0,0.00027275,2]
[354339678,1740433845181,-228.63,0.000274,2]
[354339679,1740433845190,-567.73,0.00027405,2]
[354339680,1740433845199,-743.15122946,0.00027585,5]
[354339681,1740433845209,-567.73,0.00027588,2]
[354339682,1740433845218,-508.64,0.00027744,2]
[354339683,1740433845227,-379.6553442,0.00027762,3]
[354339684,1740433845237,-567.73,0.00027771,2]
[354339685,1740433845246,-6580.85788262,0.00027861,2]
[354339686,1740433845255,-150.0,0.00027947,2]
[354339687,1740433845264,-567.73,0.00027954,2]
[354339688,1740433845276,-379.6553442,0.0002799,3]
[354339689,1740433845285,-162.29,0.00027998,2]
[354339690,1740433845295,-16465.04779865,0.00028,16]
[354339698,1740433845701,-986.58,0.00028,16]
[354339700,1740433845712,-621.59999998,0.00028,16]
[354339702,1740433845723,-2494.245,0.00028,16]
[354339704,1740433845734,-403.92485244,0.00028,16]
[354339707,1740433845749,-16694.49999995,0.00028,16]
[354339709,1740433845761,-14446.45335528,0.00028,16]
[354339712,1740433845776,-6414.789155,0.00028,16]
[354339721,1740433846152,-41472.8598387,0.00028,16]
[354339722,1740433846161,-1634.562548,0.00028,60]
[354339723,1740433846171,-151.0,0.00028,7]
[354339724,1740433846181,-151.0,0.00028,7]
[354339725,1740433846190,-156.526457,0.00028,7]
[354339726,1740433846199,-156.526457,0.00028,7]
[354339727,1740433846208,-151.0,0.00028,7]
[354339728,1740433846217,-180.499503,0.00028,7]
[354339729,1740433846227,-180.499503,0.00028,7]
[354339730,1740433846237,-151.0,0.00028,7]
[354339731,1740433846246,-285.32154,0.00028,7]
[354339732,1740433846255,-285.321532,0.00028,7]
[354339733,1740433846264,-209.305643,0.00028,7]
[354339734,1740433846275,-209.305643,0.00028,7]
[354339735,1740433846285,-376.103308,0.00028,7]
[354339736,1740433846295,-376.103308,0.00028,7]
[354339737,1740433846305,-228.438234,0.00028,7]
[354339738,1740433846316,-228.438234,0.00028,7]
[354339739,1740433846326,-151.0,0.00028,7]
[354339740,1740433846336,-151.0,0.00028,7]
[354339741,1740433846346,-225.232336,0.00028,7]
[354339742,1740433846356,-151.0,0.00028,7]
[354339743,1740433846366,-198.568777,0.00028,7]
[354339744,1740433846376,-198.568777,0.00028,7]
[354339745,1740433846386,-162.547855,0.00028,7]
[354339746,1740433846396,-302.668272,0.00028,7]
[354339747,1740433846412,-302.668272,0.00028,7]
[354339748,1740433846423,-3131.757085,0.00028,7]
[354339749,1740433846433,-162.547855,0.00028,7]
[354339750,1740433846443,-3131.757085,0.00028,7]
[354339751,1740433846452,-151.0,0.00028,7]
[354339752,1740433846461,-11238.88,0.00028,21]
[354339753,1740433846471,-567.73,0.00028137,2]
[354339754,1740433846480,-151.0,0.00028255,7]
[354339755,1740433846489,-151.0,0.00028255,7]
[354339756,1740433846500,-567.73,0.0002832,2]
[354339757,1740433846509,-379.6553442,0.00028446,3]
[354339758,1740433846518,-180.499503,0.00028456,7]
[354339759,1740433846528,-180.499507,0.00028456,7]
[354339760,1740433846538,-209.305643,0.00028456,7]
[354339761,1740433846728,-209.305643,0.00028456,7]
[354339762,1740433846738,-376.103308,0.00028456,7]
[354339763,1740433846748,-376.103298,0.00028456,7]
[354339764,1740433846757,-228.438234,0.00028456,7]
[354339765,1740433846766,-228.438234,0.00028456,7]
[354339766,1740433846776,-154.74,0.00028493,2]
[354339767,1740433846785,-379.6553442,0.00028753,3]
[354339768,1740433846794,-181.392086,0.00028754,7]
[354339769,1740433846803,-3131.757085,0.00028754,7]
[354339770,1740433846812,-3131.757085,0.00028754,7]
[354339771,1740433846821,-151.0,0.00028754,7]
[354339772,1740433846830,-5942.84532479,0.00028763,2]
[354339773,1740433846853,-7159.14221858,0.00028763,2]
[354339774,1740433846864,-4346.55172686,0.00028763,2]
[354339775,1740433846879,-2264.38081051,0.00028763,2]
[354339776,1740433846889,-379.6553442,0.00028853,3]
[354339777,1740433846898,-15471.25,0.00028863,2]
[354339778,1740433846907,-156.526457,0.00028863,7]
[354339779,1740433846916,-156.526457,0.00028863,7]
[354339780,1740433846925,-209.305643,0.00028863,7]
[354339781,1740433846934,-209.305643,0.00028863,7]
[354339782,1740433846943,-228.438234,0.00028863,7]
[354339783,1740433846952,-228.438234,0.00028863,7]
[354339784,1740433846961,-151.0,0.00028863,7]
[354339785,1740433846970,-151.0,0.00028863,7]
[354339786,1740433846979,-153.460514,0.00028863,7]
[354339787,1740433846989,-198.568777,0.00028863,7]
[354339788,1740433846998,-198.568777,0.00028863,7]
[354339789,1740433847007,-162.547855,0.00028863,7]
[354339790,1740433847016,-302.668272,0.00028863,7]
[354339791,1740433847025,-302.668272,0.00028863,7]
[354339792,1740433847035,-162.547855,0.00028863,7]
[354339793,1740433847044,-151.480757,0.00028865,7]
[354339794,1740433847053,-151.0,0.00028865,7]
[354339795,1740433847062,-151.0,0.00028865,7]
[354339796,1740433847071,-151.0,0.00028865,7]
[354339797,1740433847080,-3131.757085,0.00028865,7]
[354339798,1740433847089,-3131.757085,0.00028865,7]
[354339799,1740433847099,-151.0,0.00028865,7]
[354339800,1740433847108,-857.54164706,0.0002887,2]
[354339801,1740433847117,-151.860429,0.00028893,7]
[354339802,1740433847126,-151.0,0.00028893,7]
[354339803,1740433847135,-198.568777,0.00028893,7]
[354339804,1740433847145,-198.568777,0.00028893,7]
[354339805,1740433847154,-162.547855,0.00028893,7]
[354339806,1740433847163,-162.547855,0.00028893,7]
[354339807,1740433847172,-379.6553442,0.0002896,3]
[354339808,1740433847181,-1198.7,0.00028965,120]
[354339809,1740433847190,-1782.0,0.0002897,2]
[354339810,1740433847198,-150.0,0.0002897,2]
[354339811,1740433847207,-151.0,0.00028993,7]
[354339812,1740433847216,-151.0,0.00028993,7]
[354339813,1740433847226,-156.526457,0.00028993,7]
[354339814,1740433847235,-156.526457,0.00028993,7]
[354339815,1740433847244,-151.0,0.00028993,7]
[354339816,1740433847253,-209.305643,0.00028993,7]
[354339817,1740433847262,-209.305643,0.00028993,7]
[354339818,1740433847270,-228.438234,0.00028993,7]
[354339819,1740433847280,-228.438234,0.00028993,7]
[354339820,1740433847289,-181.84664,0.00028993,7]
[354339821,1740433847298,-198.568777,0.00028993,7]
[354339822,1740433847306,-198.568777,0.00028993,7]
[354339823,1740433847315,-162.547855,0.00028993,7]
[354339824,1740433847324,-162.547855,0.00028993,7]
[354339825,1740433847333,-100000.0,0.00029,18]
[354339826,1740433847343,-1792.0,0.00029092,2]
[354339827,1740433847351,-354.5570899,0.00029186,2]
[354339828,1740433847361,-302.668272,0.00029286,7]
[354339829,1740433847371,-302.668272,0.00029286,7]
[354339830,1740433847380,-379.6553442,0.00029657,3]
[354339831,1740433847388,-379.6553442,0.00029659,3]
[354339832,1740433847397,-19712.92008066,0.00029667,2]
[354339833,1740433847407,-6580.85788262,0.00029669,2]
[354339834,1740433847415,-198.568777,0.00029672,7]
[354339835,1740433847428,-198.568773,0.00029672,7]
[354339836,1740433847437,-162.547855,0.00029672,7]
[354339837,1740433847446,-162.547862,0.00029672,7]
[354339838,1740433847455,-500.0,0.000297,2]
[354339839,1740433847464,-150.0,0.000297,2]
[354339840,1740433847474,-276.33,0.00029733,30]
[354339841,1740433847482,-3564.80378419,0.000299,2]
[354339842,1740433847491,-302.668272,0.000299,7]
[354339843,1740433847500,-302.668267,0.000299,7]
[354339844,1740433847509,-1138.9660326,0.0002999,3]
[354339845,1740433847518,-226.87730733,0.0002999,2]
[354339846,1740433847528,-151.0,0.0002999,7]
[354339847,1740433847537,-151.0,0.0002999,7]
[354339848,1740433847546,-151.0,0.0002999,7]
[354339849,1740433847555,-151.0,0.00029999,7]
[354339850,1740433847564,-76350.91863984,0.0003,30]
[354339851,1740433847592,-611.49804006,0.0003,30]
[354339852,1740433847602,-1530.98242988,0.0003,30]
[354339853,1740433847626,-508.52999999,0.0003,30]
[354339854,1740433847637,-569.49474551,0.0003,30]
[354339868,1740434938549,150.51,8.767e-05,2]
[354339954,1740435031819,-490.55,0.0001766,2]
[354339955,1740435031829,-150.51,0.00017926,2]
[354339956,1740435031839,-150.0,0.00019036,2]
[354339957,1740435031851,-617.347,0.00019178,7]
[354339958,1740435031864,-382.653,0.00019178,7]
[354339959,1740435031874,-996.41,0.00019178,2]
[354339960,1740435031883,-999.61,0.00019178,2]
[354339961,1740435031895,-1346.06496582,0.00019179,2]
[354339962,1740435031905,-1017.54,0.00019179,2]
[354339963,1740435031915,-998.33,0.0001918,2]
[354339964,1740435031925,-1016.49,0.00019181,2]
[354339965,1740435031935,-150.0,0.00019183,2]
[354339966,1740435031945,-481.34,0.00019184,2]
[354339967,1740435031955,-150.99,0.00019184,2]
[354339968,1740435031965,-999.99,0.00019184,2]
[354339969,1740435031975,-640.68,0.00019184,2]
[354339970,1740435031985,-1359.62,0.00019184,2]
[354339971,1740435031995,-9999.99,0.00019184,2]
[354339972,1740435032005,-989.88,0.00019184,2]
[354339973,1740435032015,-986.84,0.00019191,2]
[354339974,1740435032024,-1006.28,0.00019204,2]
[354339975,1740435032034,-279.35,0.00019397,30]
[354339976,1740435032044,-1000.0,0.00019452,7]
[354339977,1740435032053,-964.57,0.00019473,2]
[354339978,1740435032063,-1000.0,0.00019726,7]
[354339979,1740435032073,-220.59,0.00019841,2]
[354339980,1740435032083,-490.55,0.00019924,2]
[354339981,1740435032092,-151.0,0.0002,2]
[354339982,1740435032102,-151.0,0.0002,2]
[354339983,1740435032111,-151.0,0.0002,2]
[354339984,1740435032121,-151.643701,0.0002,2]
[354339985,1740435032131,-151.0,0.0002,2]
[354339986,1740435032141,-1000.0,0.0002,7]
[354339987,1740435032151,-2000.0,0.00020071,2]
[354339988,1740435032161,-14287.9626,0.00020173,2]
[354339989,1740435032293,-1000.0,0.00020273,7]
[354339990,1740435032335,-151.0,0.00020378,2]
[354339991,1740435032346,-151.0,0.00020378,2]
[354339992,1740435032356,-151.0,0.00020378,2]
[354339993,1740435032365,-151.0,0.00020378,2]
[354339994,1740435032375,-22537.49921568,0.00020492,2]
[354339996,1740435032401,-323.6519457,0.00020492,2]
[354339999,1740435032415,-526.29,0.00020492,2]
[354340001,1740435032427,-512.55883862,0.00020492,2]
[354340003,1740435032438,-300.0,0.00020515,2]
[354340005,1740435032448,-156.08,0.00020547,7]
[354340007,1740435032458,-437.61116138,0.00020664,2]